[Event "Late-Titled-Tuesday-Blitz-April-02-2024"]
[Site "Chess.com"]
[Date "2024.04.02"]
[Round "5"]
[White "ameetghasi100"]
[Black "subham777"]
[Result "1-0"]
[WhiteElo "2804"]
[BlackElo "2563"]
[TimeControl "180+1"]
[EndTime "14:54:37 PDT"]
[Termination "ameetghasi100 won on time"]

1. b3 {[%clk 0:02:59.2]} 1... d5 {[%clk 0:02:57.2]} 2. Bb2 {[%clk 0:02:58.9]}
2... e6 {[%clk 0:02:57.5]} 3. Nf3 {[%clk 0:02:58.6]} 3... Nf6 {[%clk 0:02:57.8]}
4. e3 {[%clk 0:02:58.5]} 4... Be7 {[%clk 0:02:58.1]} 5. c4 {[%clk 0:02:58.8]}
5... O-O {[%clk 0:02:58.1]} 6. Qc2 {[%clk 0:02:57.6]} 6... c5 {[%clk 0:02:55.5]}
7. cxd5 {[%clk 0:02:57]} 7... Nxd5 {[%clk 0:02:53]} 8. h4 {[%clk 0:02:56.4]}
8... Nb4 {[%clk 0:02:46.1]} 9. Qc1 {[%clk 0:02:42.3]} 9... N8c6 {[%clk
0:02:34.4]} 10. a3 {[%clk 0:02:36.8]} 10... Nd3+ {[%clk 0:02:28.2]} 11. Bxd3
{[%clk 0:02:36.9]} 11... Qxd3 {[%clk 0:02:29.1]} 12. Qc3 {[%clk 0:02:37.2]}
12... Qxc3 {[%clk 0:02:08.9]} 13. Bxc3 {[%clk 0:02:38.1]} 13... b5 {[%clk
0:02:01.5]} 14. O-O {[%clk 0:02:36.2]} 14... Bb7 {[%clk 0:01:58.4]} 15. Rc1
{[%clk 0:02:36.2]} 15... Rfd8 {[%clk 0:01:55.5]} 16. d4 {[%clk 0:02:35.1]} 16...
cxd4 {[%clk 0:01:52.6]} 17. Nxd4 {[%clk 0:02:36]} 17... Nxd4 {[%clk 0:01:51.8]}
18. Bxd4 {[%clk 0:02:36.9]} 18... Rac8 {[%clk 0:01:42.6]} 19. Nc3 {[%clk
0:02:25]} 19... a6 {[%clk 0:01:36.9]} 20. h5 {[%clk 0:02:21.3]} 20... Rc6 {[%clk
0:01:20.9]} 21. a4 {[%clk 0:02:17.9]} 21... Rdc8 {[%clk 0:01:06.4]} 22. axb5
{[%clk 0:02:01.9]} 22... axb5 {[%clk 0:01:07.3]} 23. Ra7 {[%clk 0:02:01.8]}
23... R8c7 {[%clk 0:00:42.2]} 24. Be5 {[%clk 0:02:01.5]} 24... Rd7 {[%clk
0:00:23.9]} 25. Rd1 {[%clk 0:01:40.7]} 25... Rxd1+ {[%clk 0:00:20]} 26. Nxd1
{[%clk 0:01:41.6]} 26... Rc1 {[%clk 0:00:19.8]} 27. Rxb7 {[%clk 0:01:39.1]}
27... Rxd1+ {[%clk 0:00:20]} 28. Kh2 {[%clk 0:01:39.7]} 28... Bf8 {[%clk
0:00:14.9]} 29. Rb8 {[%clk 0:01:39.6]} 29... Rd5 {[%clk 0:00:12.8]} 30. f4
{[%clk 0:01:34]} 30... f6 {[%clk 0:00:13.2]} 31. Bc3 {[%clk 0:01:34]} 31...
Rxh5+ {[%clk 0:00:13.3]} 32. Kg3 {[%clk 0:01:34.4]} 32... Kf7 {[%clk 0:00:11.5]}
33. Kf3 {[%clk 0:01:30.3]} 33... Rd5 {[%clk 0:00:11.4]} 34. g4 {[%clk
0:01:28.1]} 34... Rd3 {[%clk 0:00:10.6]} 35. Rc8 {[%clk 0:01:26.4]} 35... b4
{[%clk 0:00:09]} 36. Bd4 {[%clk 0:01:26.7]} 36... Rxb3 {[%clk 0:00:08.4]} 37.
Rc7+ {[%clk 0:01:25.3]} 37... Ke8 {[%clk 0:00:08.8]} 38. Ke4 {[%clk 0:01:24.2]}
38... Rb1 {[%clk 0:00:09.4]} 39. f5 {[%clk 0:01:24.1]} 39... exf5+ {[%clk
0:00:09.2]} 40. gxf5 {[%clk 0:01:25]} 40... b3 {[%clk 0:00:08.8]} 41. Kd5 {[%clk
0:01:25.6]} 41... b2 {[%clk 0:00:04.1]} 42. Rb7 {[%clk 0:01:18.7]} 42... Ba3
{[%clk 0:00:04.2]} 43. Ke6 {[%clk 0:01:00.6]} 43... Kd8 {[%clk 0:00:03.9]} 44.
Kf7 {[%clk 0:00:39.5]} 44... Kc8 {[%clk 0:00:02.2]} 45. Rb3 {[%clk 0:00:39.3]}
45... Rd1 {[%clk 0:00:02.3]} 46. Bxb2 {[%clk 0:00:38.9]} 46... Rd7+ {[%clk
0:00:02.7]} 47. Kg8 {[%clk 0:00:37.6]} 47... Bxb2 {[%clk 0:00:02.8]} 48. Rxb2
{[%clk 0:00:38.5]} 48... g6 {[%clk 0:00:03.4]} 49. e4 {[%clk 0:00:33.4]} 49...
gxf5 {[%clk 0:00:03.3]} 50. exf5 {[%clk 0:00:34.3]} 50... Rd5 {[%clk 0:00:03.5]}
51. Rf2 {[%clk 0:00:35]} 51... Rd7 {[%clk 0:00:03.8]} 52. Rc2+ {[%clk
0:00:32.9]} 52... Kd8 {[%clk 0:00:03.3]} 53. Kf8 {[%clk 0:00:33.1]} 53... Rd5
{[%clk 0:00:03.1]} 54. Rf2 {[%clk 0:00:33.4]} 54... Kd7 {[%clk 0:00:03.3]} 55.
Kf7 {[%clk 0:00:34.1]} 55... Rd6 {[%clk 0:00:03.6]} 56. Rh2 {[%clk 0:00:34.4]}
56... Kc6 {[%clk 0:00:04]} 57. Rc2+ {[%clk 0:00:31.2]} 57... Kb5 {[%clk
0:00:03.2]} 58. Ke7 {[%clk 0:00:29.8]} 58... Ra6 {[%clk 0:00:02.4]} 59. Rh2
{[%clk 0:00:29.2]} 59... Kc5 {[%clk 0:00:02.6]} 60. Rd2 {[%clk 0:00:23.8]} 60...
Kc4 {[%clk 0:00:02.9]} 61. Kf7 {[%clk 0:00:21.1]} 61... Kc3 {[%clk 0:00:02.5]}
62. Rd8 {[%clk 0:00:20.7]} 62... Kc4 {[%clk 0:00:02.6]} 63. Rd1 {[%clk
0:00:17.2]} 63... Kc3 {[%clk 0:00:03]} 64. Kg7 {[%clk 0:00:16.6]} 64... Kc2
{[%clk 0:00:02.6]} 65. Rh1 {[%clk 0:00:16.7]} 65... Kd3 {[%clk 0:00:01.9]} 66.
Kxh7 {[%clk 0:00:15.1]} 66... Ke4 {[%clk 0:00:01.9]} 67. Kg6 {[%clk 0:00:15.7]}
1-0

[Event "Late-Titled-Tuesday-Blitz-April-02-2024"]
[Site "Chess.com"]
[Date "2024.04.02"]
[Round "5"]
[White "AsaHoffmann"]
[Black "DirtyKabab"]
[Result "1-0"]
[WhiteElo "2423"]
[BlackElo "2563"]
[TimeControl "180+1"]
[EndTime "14:54:37 PDT"]
[Termination "AsaHoffmann won on time"]

1. d4 {[%clk 0:02:57.1]} 1... Nf6 {[%clk 0:02:59.9]} 2. Bg5 {[%clk 0:02:50.1]}
2... e6 {[%clk 0:02:57.6]} 3. Nd2 {[%clk 0:02:49.7]} 3... h6 {[%clk 0:02:55]} 4.
Bh4 {[%clk 0:02:49.4]} 4... d5 {[%clk 0:02:47.5]} 5. e3 {[%clk 0:02:49]} 5... c5
{[%clk 0:02:45.5]} 6. c3 {[%clk 0:02:49]} 6... Nc6 {[%clk 0:02:45.4]} 7. f4
{[%clk 0:02:48.8]} 7... Be7 {[%clk 0:02:19.3]} 8. Bd3 {[%clk 0:02:37.5]} 8... b6
{[%clk 0:02:17.1]} 9. Ngf3 {[%clk 0:02:37.1]} 9... Bb7 {[%clk 0:02:17.1]} 10.
O-O {[%clk 0:02:36.7]} 10... Ng4 {[%clk 0:02:04.7]} 11. Bxe7 {[%clk 0:02:33.2]}
11... Nxe7 {[%clk 0:01:45.9]} 12. Qe1 {[%clk 0:02:31.8]} 12... O-O {[%clk
0:01:35.1]} 13. h3 {[%clk 0:02:29.6]} 13... Nf6 {[%clk 0:01:35.3]} 14. Ne5
{[%clk 0:02:29.2]} 14... Ne4 {[%clk 0:01:33.8]} 15. Bxe4 {[%clk 0:02:23]} 15...
dxe4 {[%clk 0:01:34.7]} 16. Rd1 {[%clk 0:02:10.4]} 16... cxd4 {[%clk 0:01:34.7]}
17. exd4 {[%clk 0:02:09.4]} 17... f6 {[%clk 0:01:28.1]} 18. Ng4 {[%clk
0:02:06.4]} 18... f5 {[%clk 0:01:18.5]} 19. Ne5 {[%clk 0:02:04.4]} 19... Kh7
{[%clk 0:01:11.2]} 20. Qg3 {[%clk 0:02:00.6]} 20... Qe8 {[%clk 0:01:06.8]} 21.
Rfe1 {[%clk 0:01:59.4]} 21... Rg8 {[%clk 0:01:04.3]} 22. h4 {[%clk 0:01:57.7]}
22... Qh5 {[%clk 0:01:00.2]} 23. Nf1 {[%clk 0:01:55.3]} 23... Nd5 {[%clk
0:00:58]} 24. Ne3 {[%clk 0:01:51]} 24... Nf6 {[%clk 0:00:55.3]} 25. Rd2 {[%clk
0:01:41.3]} 25... Rad8 {[%clk 0:00:53.1]} 26. c4 {[%clk 0:01:37]} 26... g5
{[%clk 0:00:45]} 27. hxg5 {[%clk 0:01:32.6]} 27... hxg5 {[%clk 0:00:45.6]} 28.
Rf1 {[%clk 0:01:26.7]} 28... gxf4 {[%clk 0:00:42.1]} 29. Qxf4 {[%clk 0:01:18.8]}
29... Qg5 {[%clk 0:00:36.4]} 30. Qxg5 {[%clk 0:01:13.8]} 30... Rxg5 {[%clk
0:00:37]} 31. Nf7 {[%clk 0:01:13.7]} 31... Rdg8 {[%clk 0:00:36.9]} 32. Nxg5+
{[%clk 0:01:13.3]} 32... Rxg5 {[%clk 0:00:37.8]} 33. Rdf2 {[%clk 0:01:10]} 33...
Rg3 {[%clk 0:00:34.6]} 34. Re1 {[%clk 0:01:09.8]} 34... Kg6 {[%clk 0:00:33.1]}
35. Kh2 {[%clk 0:01:03.7]} 35... Rg5 {[%clk 0:00:31.5]} 36. g3 {[%clk
0:01:01.6]} 36... Rh5+ {[%clk 0:00:27.1]} 37. Kg2 {[%clk 0:01:00.7]} 37... Rh8
{[%clk 0:00:26.4]} 38. Rd1 {[%clk 0:00:58.7]} 38... Rd8 {[%clk 0:00:23.2]} 39.
b3 {[%clk 0:00:58.1]} 39... Ng4 {[%clk 0:00:16.4]} 40. Nxg4 {[%clk 0:00:56.6]}
40... e3+ {[%clk 0:00:16.9]} 41. Kf1 {[%clk 0:00:51.9]} 41... exf2 {[%clk
0:00:15.7]} 42. Nxf2 {[%clk 0:00:51.6]} 42... Bf3 {[%clk 0:00:14.3]} 43. Rd2
{[%clk 0:00:50.7]} 43... Rh8 {[%clk 0:00:13.5]} 44. Nd3 {[%clk 0:00:50.1]} 44...
Kg5 {[%clk 0:00:12.4]} 45. Nf4 {[%clk 0:00:48.5]} 45... Kg4 {[%clk 0:00:11.2]}
46. Kf2 {[%clk 0:00:48.1]} 46... Rh2+ {[%clk 0:00:10.5]} 47. Ke3 {[%clk
0:00:48]} 47... Rh1 {[%clk 0:00:07.7]} 48. Nxe6 {[%clk 0:00:44.4]} 48... Re1+
{[%clk 0:00:07.8]} 49. Kd3 {[%clk 0:00:44.6]} 49... Rxe6 {[%clk 0:00:08.4]} 50.
d5 {[%clk 0:00:44.2]} 50... Be4+ {[%clk 0:00:07.8]} 51. Kd4 {[%clk 0:00:43.9]}
51... Re8 {[%clk 0:00:08.7]} 52. b4 {[%clk 0:00:43.5]} 52... Kxg3 {[%clk
0:00:08.4]} 53. c5 {[%clk 0:00:43.6]} 53... bxc5+ {[%clk 0:00:08.3]} 54. bxc5
{[%clk 0:00:43.6]} 54... Bxd5 {[%clk 0:00:09]} 55. Rd3+ {[%clk 0:00:42.5]} 55...
Bf3 {[%clk 0:00:08.5]} 56. Rc3 {[%clk 0:00:40.5]} 56... f4 {[%clk 0:00:08.1]}
57. c6 {[%clk 0:00:40.4]} 57... Rc8 {[%clk 0:00:08.1]} 58. c7 {[%clk 0:00:40.4]}
58... Kg4 {[%clk 0:00:07.8]} 59. Ke5 {[%clk 0:00:40.4]} 59... Bb7 {[%clk
0:00:07.5]} 60. Kd6 {[%clk 0:00:39.9]} 60... Rf8 {[%clk 0:00:07.5]} 61. Rb3
{[%clk 0:00:39.1]} 61... Bc8 {[%clk 0:00:07.6]} 62. Ke7 {[%clk 0:00:38.3]} 62...
Rh8 {[%clk 0:00:07.3]} 63. Rd3 {[%clk 0:00:38]} 63... f3 {[%clk 0:00:07.5]} 64.
Rd8 {[%clk 0:00:37.8]} 64... Rh7+ {[%clk 0:00:07.4]} 65. Kd6 {[%clk 0:00:37.5]}
65... Bf5 {[%clk 0:00:07.2]} 66. Rg8+ {[%clk 0:00:36.3]} 66... Kf4 {[%clk
0:00:06.2]} 67. c8=Q {[%clk 0:00:35.2]} 67... Rd7+ {[%clk 0:00:07.1]} 68. Kc6
{[%clk 0:00:34.1]} 68... Rd6+ {[%clk 0:00:06.4]} 69. Kxd6 {[%clk 0:00:33.8]}
69... Bxc8 {[%clk 0:00:07.2]} 70. Rxc8 {[%clk 0:00:33.3]} 70... f2 {[%clk
0:00:06.9]} 71. Rf8+ {[%clk 0:00:33]} 71... Ke3 {[%clk 0:00:07.5]} 72. Kc7
{[%clk 0:00:33]} 72... a5 {[%clk 0:00:05.6]} 73. a4 {[%clk 0:00:32.9]} 73... Ke2
{[%clk 0:00:05.6]} 74. Kb6 {[%clk 0:00:32.9]} 74... f1=Q {[%clk 0:00:06]} 75.
Rxf1 {[%clk 0:00:32.2]} 75... Kxf1 {[%clk 0:00:06.9]} 76. Kxa5 {[%clk
0:00:32.1]} 1-0

[Event "Late-Titled-Tuesday-Blitz-April-02-2024"]
[Site "Chess.com"]
[Date "2024.04.02"]
[Round "5"]
[White "Korchmar_Vasiliy"]
[Black "Road2GM3000"]
[Result "1-0"]
[WhiteElo "2736"]
[BlackElo "2490"]
[TimeControl "180+1"]
[EndTime "14:54:39 PDT"]
[Termination "Korchmar_Vasiliy won by resignation"]

1. e4 {[%clk 0:03:00.9]} 1... c5 {[%clk 0:02:59.9]} 2. d4 {[%clk 0:03:00.9]}
2... cxd4 {[%clk 0:03:00.1]} 3. Qxd4 {[%clk 0:03:01.8]} 3... Nc6 {[%clk
0:02:59.6]} 4. Qd3 {[%clk 0:03:02.3]} 4... d6 {[%clk 0:02:53.8]} 5. Nc3 {[%clk
0:03:01.8]} 5... Nf6 {[%clk 0:02:53.5]} 6. Nf3 {[%clk 0:03:01.5]} 6... g6 {[%clk
0:02:49.7]} 7. Be2 {[%clk 0:03:01.4]} 7... Bg7 {[%clk 0:02:49.9]} 8. O-O {[%clk
0:03:02]} 8... O-O {[%clk 0:02:49.5]} 9. Nd5 {[%clk 0:03:02.6]} 9... Nd7 {[%clk
0:02:41.5]} 10. c3 {[%clk 0:03:00.3]} 10... b6 {[%clk 0:02:36.6]} 11. Bg5 {[%clk
0:02:59.1]} 11... Re8 {[%clk 0:02:33.4]} 12. Rad1 {[%clk 0:02:57.8]} 12... Nde5
{[%clk 0:02:28.3]} 13. Nxe5 {[%clk 0:02:57.1]} 13... Nxe5 {[%clk 0:02:29.2]} 14.
Qe3 {[%clk 0:02:56.1]} 14... Bb7 {[%clk 0:02:20.2]} 15. f4 {[%clk 0:02:56.3]}
15... Nd7 {[%clk 0:02:16.8]} 16. e5 {[%clk 0:02:41.1]} 16... Bxd5 {[%clk
0:02:04.7]} 17. Rxd5 {[%clk 0:02:41]} 17... Qc7 {[%clk 0:01:58.5]} 18. e6 {[%clk
0:02:35.6]} 18... Nf6 {[%clk 0:01:58.6]} 19. Rd2 {[%clk 0:02:22.1]} 19... Qc5
{[%clk 0:01:54.8]} 20. Rd4 {[%clk 0:02:15.3]} 20... Nd5 {[%clk 0:01:44.4]} 21.
Qe4 {[%clk 0:01:54.3]} 21... Nc7 {[%clk 0:01:25.6]} 22. exf7+ {[%clk 0:01:51.1]}
22... Kxf7 {[%clk 0:01:24.7]} 23. f5 {[%clk 0:01:51.5]} 23... Kg8 {[%clk
0:01:16.1]} 24. Be3 {[%clk 0:01:33.7]} 24... Bxd4 {[%clk 0:00:43.1]} 25. Bxd4
{[%clk 0:01:34.6]} 25... Qd5 {[%clk 0:00:42.8]} 26. Qxd5+ {[%clk 0:01:28.6]}
26... Nxd5 {[%clk 0:00:42.7]} 27. Bc4 {[%clk 0:01:29.5]} 27... e6 {[%clk
0:00:42.7]} 28. fxe6 {[%clk 0:01:26.7]} 28... Ne7 {[%clk 0:00:39.7]} 29. Rf7
{[%clk 0:01:24.7]} 29... d5 {[%clk 0:00:35.5]} 30. Rg7+ {[%clk 0:01:18.7]} 30...
Kf8 {[%clk 0:00:34.8]} 31. Rf7+ {[%clk 0:01:12.9]} 31... Kg8 {[%clk 0:00:35.1]}
32. Bb5 {[%clk 0:01:13.8]} 32... Nf5 {[%clk 0:00:17.4]} 33. Bxe8 {[%clk
0:01:10.8]} 33... Rxe8 {[%clk 0:00:18.1]} 34. Rxa7 {[%clk 0:00:30.8]} 34... Nxd4
{[%clk 0:00:18]} 35. cxd4 {[%clk 0:00:29.4]} 35... Rxe6 {[%clk 0:00:18.6]} 36.
Rb7 {[%clk 0:00:30.1]} 36... Rc6 {[%clk 0:00:11.3]} 37. h3 {[%clk 0:00:19]}
37... h5 {[%clk 0:00:11.5]} 38. a4 {[%clk 0:00:14.8]} 38... Rc4 {[%clk
0:00:10.3]} 39. Rxb6 {[%clk 0:00:09.9]} 39... Rxa4 {[%clk 0:00:09.3]} 40. Rxg6+
{[%clk 0:00:10.5]} 40... Kf7 {[%clk 0:00:09.3]} 41. Rg5 {[%clk 0:00:10.7]} 41...
Rxd4 {[%clk 0:00:09.9]} 42. Rxh5 {[%clk 0:00:11]} 42... Rd1+ {[%clk 0:00:08.9]}
43. Kh2 {[%clk 0:00:09.4]} 43... Rd2 {[%clk 0:00:05.3]} 44. b4 {[%clk
0:00:08.7]} 44... Ke6 {[%clk 0:00:05.2]} 45. Rh8 {[%clk 0:00:09]} 45... Rb2
{[%clk 0:00:05.5]} 46. Rb8 {[%clk 0:00:09]} 46... d4 {[%clk 0:00:06.2]} 47. b5
{[%clk 0:00:07.6]} 47... d3 {[%clk 0:00:06.4]} 48. Rd8 {[%clk 0:00:07.7]} 48...
d2 {[%clk 0:00:06]} 49. b6 {[%clk 0:00:08]} 49... Ke7 {[%clk 0:00:06.7]} 50. Rd3
{[%clk 0:00:07.4]} 50... Ke6 {[%clk 0:00:05.8]} 51. b7 {[%clk 0:00:07.6]} 51...
Ke5 {[%clk 0:00:06.5]} 52. b8=Q+ {[%clk 0:00:07.5]} 52... Rxb8 {[%clk
0:00:07.2]} 53. Rxd2 {[%clk 0:00:08.1]} 53... Kf4 {[%clk 0:00:08]} 54. Rd4+
{[%clk 0:00:08]} 54... Ke3 {[%clk 0:00:08.6]} 55. Rg4 {[%clk 0:00:08.2]} 55...
Kf2 {[%clk 0:00:08.9]} 56. Rf4+ {[%clk 0:00:08.1]} 56... Ke3 {[%clk 0:00:09.5]}
57. Rf7 {[%clk 0:00:08.5]} 57... Ke4 {[%clk 0:00:10.1]} 58. h4 {[%clk
0:00:08.5]} 58... Rb1 {[%clk 0:00:09.3]} 59. Kh3 {[%clk 0:00:08.6]} 59... Ke5
{[%clk 0:00:10]} 60. g3 {[%clk 0:00:06.9]} 60... Ke6 {[%clk 0:00:10.9]} 61. Rf2
{[%clk 0:00:06.9]} 61... Rh1+ {[%clk 0:00:11.6]} 62. Kg4 {[%clk 0:00:07]} 62...
Ra1 {[%clk 0:00:12.5]} 63. h5 {[%clk 0:00:06.8]} 63... Ra4+ {[%clk 0:00:13.2]}
64. Kh3 {[%clk 0:00:06.3]} 64... Ra3 {[%clk 0:00:13.3]} 65. Kh4 {[%clk
0:00:06.4]} 65... Ra1 {[%clk 0:00:13.7]} 66. g4 {[%clk 0:00:06.8]} 66... Rh1+
{[%clk 0:00:13.9]} 67. Kg5 {[%clk 0:00:07.2]} 67... Ra1 {[%clk 0:00:14.6]} 68.
h6 {[%clk 0:00:07.7]} 68... Ra5+ {[%clk 0:00:15.3]} 69. Kh4 {[%clk 0:00:07.6]}
69... Ra3 {[%clk 0:00:15.3]} 70. g5 {[%clk 0:00:07.5]} 70... Ra1 {[%clk
0:00:15.5]} 71. Kh5 {[%clk 0:00:07.8]} 71... Rh1+ {[%clk 0:00:15.7]} 72. Kg6
{[%clk 0:00:08.4]} 72... Ra1 {[%clk 0:00:16.4]} 73. h7 {[%clk 0:00:08.9]} 73...
Ra2 {[%clk 0:00:17.3]} 74. h8=Q {[%clk 0:00:08.2]} 74... Rxf2 {[%clk 0:00:18.2]}
75. Qe8+ {[%clk 0:00:07.9]} 75... Kd5 {[%clk 0:00:18.4]} 76. Qd7+ {[%clk
0:00:08.3]} 1-0

[Event "Late-Titled-Tuesday-Blitz-April-02-2024"]
[Site "Chess.com"]
[Date "2024.04.02"]
[Round "5"]
[White "chucksterf10"]
[Black "moro182"]
[Result "0-1"]
[WhiteElo "2654"]
[BlackElo "2897"]
[TimeControl "180+1"]
[EndTime "14:54:40 PDT"]
[Termination "moro182 won by resignation"]

1. Nf3 {[%clk 0:02:52.8]} 1... g6 {[%clk 0:03:00.9]} 2. c4 {[%clk 0:02:52.4]}
2... Bg7 {[%clk 0:03:01.7]} 3. g3 {[%clk 0:02:52.5]} 3... d6 {[%clk 0:03:01.8]}
4. Bg2 {[%clk 0:02:53]} 4... Nc6 {[%clk 0:03:02]} 5. d4 {[%clk 0:02:52.2]} 5...
Bd7 {[%clk 0:03:02.5]} 6. d5 {[%clk 0:02:48.7]} 6... Ne5 {[%clk 0:03:02.3]} 7.
Nxe5 {[%clk 0:02:49.1]} 7... Bxe5 {[%clk 0:03:03.2]} 8. f4 {[%clk 0:02:49.6]}
8... Bg7 {[%clk 0:03:02.9]} 9. e4 {[%clk 0:02:49.8]} 9... c6 {[%clk 0:03:00]}
10. Nc3 {[%clk 0:02:44.4]} 10... cxd5 {[%clk 0:02:54.1]} 11. cxd5 {[%clk
0:02:28.7]} 11... Rc8 {[%clk 0:02:55]} 12. O-O {[%clk 0:02:28.5]} 12... Nf6
{[%clk 0:02:47.3]} 13. Be3 {[%clk 0:02:12.9]} 13... O-O {[%clk 0:02:38.4]} 14.
Bd4 {[%clk 0:02:10.6]} 14... Rc4 {[%clk 0:02:29.6]} 15. Rc1 {[%clk 0:02:01.9]}
15... Ng4 {[%clk 0:02:22.9]} 16. Bxg7 {[%clk 0:01:56.5]} 16... Kxg7 {[%clk
0:02:23.8]} 17. b3 {[%clk 0:01:53.5]} 17... Qb6+ {[%clk 0:02:15.9]} 18. Kh1
{[%clk 0:01:49]} 18... Ne3 {[%clk 0:01:57.3]} 19. Qd3 {[%clk 0:01:31.4]} 19...
Rc7 {[%clk 0:01:51.5]} 20. Rfe1 {[%clk 0:01:23.7]} 20... Nxg2 {[%clk 0:01:51.1]}
21. Kxg2 {[%clk 0:01:24.6]} 21... Rfc8 {[%clk 0:01:51.6]} 22. f5 {[%clk
0:01:01.5]} 22... Qa5 {[%clk 0:01:48.6]} 23. Re3 {[%clk 0:00:41.8]} 23... f6
{[%clk 0:01:48]} 24. a4 {[%clk 0:00:37.7]} 24... Qb4 {[%clk 0:01:46.8]} 25. Qc2
{[%clk 0:00:26.5]} 25... Qd4 {[%clk 0:01:40.8]} 26. Rd3 {[%clk 0:00:19.9]} 26...
Qxe4+ {[%clk 0:01:40.3]} 27. Nxe4 {[%clk 0:00:18.1]} 27... Rxc2+ {[%clk
0:01:41.2]} 28. Rxc2 {[%clk 0:00:18.5]} 28... Rxc2+ {[%clk 0:01:41.2]} 29. Nf2
{[%clk 0:00:06.9]} 29... Bxf5 {[%clk 0:01:42.1]} 30. Re3 {[%clk 0:00:07.3]}
30... Kf7 {[%clk 0:01:40.5]} 31. Kf3 {[%clk 0:00:07.6]} 31... h5 {[%clk
0:01:39.6]} 32. h3 {[%clk 0:00:07.6]} 32... b6 {[%clk 0:01:30.9]} 33. g4 {[%clk
0:00:07.6]} 33... hxg4+ {[%clk 0:01:30.3]} 34. hxg4 {[%clk 0:00:08.5]} 34... Bd7
{[%clk 0:01:29.7]} 35. g5 {[%clk 0:00:08.8]} 35... fxg5 {[%clk 0:01:28.6]} 36.
Ne4 {[%clk 0:00:09.1]} 36... g4+ {[%clk 0:01:28.5]} 37. Kf4 {[%clk 0:00:09.5]}
37... Bf5 {[%clk 0:01:27.6]} 38. Ng5+ {[%clk 0:00:09.7]} 38... Kf6 {[%clk
0:01:27.3]} 39. Nh7+ {[%clk 0:00:10.1]} 39... Kf7 {[%clk 0:01:27.7]} 40. Ng5+
{[%clk 0:00:10.5]} 40... Ke8 {[%clk 0:01:28.1]} 41. Ne6 {[%clk 0:00:07.6]} 41...
Rf2+ {[%clk 0:01:21.9]} 42. Kg5 {[%clk 0:00:04.1]} 42... Bxe6 {[%clk 0:01:18]}
43. dxe6 {[%clk 0:00:05]} 43... Rf3 {[%clk 0:01:12.1]} 44. Re4 {[%clk
0:00:05.3]} 44... g3 {[%clk 0:01:11.7]} 45. Rg4 {[%clk 0:00:01.7]} 45... Rf6
{[%clk 0:01:09.8]} 46. Rxg3 {[%clk 0:00:01.7]} 46... Rxe6 {[%clk 0:01:09.7]} 47.
Rc3 {[%clk 0:00:02.4]} 47... Kd7 {[%clk 0:01:09.3]} 48. b4 {[%clk 0:00:02.2]}
48... a6 {[%clk 0:01:07.5]} 49. a5 {[%clk 0:00:02.4]} 49... bxa5 {[%clk
0:01:07.5]} 50. bxa5 {[%clk 0:00:03.3]} 50... Re5+ {[%clk 0:01:07.7]} 51. Kxg6
{[%clk 0:00:04.1]} 51... Rxa5 {[%clk 0:01:08.6]} 52. Rf3 {[%clk 0:00:03.8]}
52... Rc5 {[%clk 0:01:06.9]} 53. Ra3 {[%clk 0:00:03.9]} 53... a5 {[%clk
0:01:06.9]} 54. Kf7 {[%clk 0:00:04.8]} 54... Rf5+ {[%clk 0:01:06.1]} 55. Kg6
{[%clk 0:00:05.2]} 55... e6 {[%clk 0:01:06]} 56. Ra4 {[%clk 0:00:04.9]} 56...
Kc6 {[%clk 0:01:04.9]} 57. Re4 {[%clk 0:00:05.5]} 57... Re5 {[%clk 0:01:04.5]}
58. Rc4+ {[%clk 0:00:06.1]} 58... Kb5 {[%clk 0:01:04.4]} 59. Rc8 {[%clk
0:00:06.8]} 59... a4 {[%clk 0:01:04.6]} 60. Rd8 {[%clk 0:00:07.3]} 60... Rd5
{[%clk 0:01:03.7]} 61. Kf6 {[%clk 0:00:07.7]} 61... e5 {[%clk 0:01:03.8]} 62.
Kf5 {[%clk 0:00:08.1]} 62... Rd4 {[%clk 0:01:03.8]} 63. Rb8+ {[%clk 0:00:07.3]}
63... Kc4 {[%clk 0:01:03.9]} 64. Rc8+ {[%clk 0:00:07.7]} 64... Kb3 {[%clk
0:01:04.1]} 65. Rb8+ {[%clk 0:00:08.6]} 65... Rb4 {[%clk 0:01:04.2]} 66. Ra8
{[%clk 0:00:06.9]} 66... a3 {[%clk 0:01:04.2]} 67. Ke6 {[%clk 0:00:07.4]} 67...
a2 {[%clk 0:01:04.1]} 68. Kf7 {[%clk 0:00:05.7]} 68... e4 {[%clk 0:01:03.9]} 69.
Kg7 {[%clk 0:00:05.1]} 69... e3 {[%clk 0:01:04]} 70. Kh8 {[%clk 0:00:05.3]}
70... d5 {[%clk 0:01:04.1]} 71. Re8 {[%clk 0:00:05.2]} 71... d4 {[%clk
0:01:04.1]} 72. Re7 {[%clk 0:00:04.5]} 72... Kc3 {[%clk 0:01:02.6]} 73. Rc7+
{[%clk 0:00:04.5]} 73... Kd3 {[%clk 0:01:02.8]} 74. Ra7 {[%clk 0:00:05.4]} 74...
Rb2 {[%clk 0:01:02.5]} 75. Ra3+ {[%clk 0:00:05.8]} 75... Ke4 {[%clk 0:01:02.3]}
76. Ra8 {[%clk 0:00:06.7]} 76... e2 {[%clk 0:01:02.5]} 77. Re8+ {[%clk
0:00:07.6]} 77... Kd3 {[%clk 0:01:02.9]} 78. Ra8 {[%clk 0:00:07.8]} 78... Ke3
{[%clk 0:01:02.5]} 79. Ra3+ {[%clk 0:00:08.5]} 79... d3 {[%clk 0:01:02.7]} 80.
Ra8 {[%clk 0:00:09.4]} 80... d2 {[%clk 0:01:03]} 81. Re8+ {[%clk 0:00:09.7]}
81... Kf2 {[%clk 0:01:03.3]} 82. Ra8 {[%clk 0:00:10.6]} 82... Rb8+ {[%clk
0:01:02.8]} 83. Rxb8 {[%clk 0:00:10.7]} 83... e1=Q {[%clk 0:01:02.6]} 84. Rf8+
{[%clk 0:00:10.9]} 84... Ke2 {[%clk 0:01:02.7]} 85. Re8+ {[%clk 0:00:11.4]}
85... Kd3 {[%clk 0:01:03.1]} 86. Ra8 {[%clk 0:00:12.1]} 86... a1=Q+ {[%clk
0:01:02.1]} 87. Kh7 {[%clk 0:00:10.3]} 87... Qe7+ {[%clk 0:01:01.3]} 88. Kg6
{[%clk 0:00:09.2]} 88... Qaf6+ {[%clk 0:01:01.8]} 0-1